[Event "Titled Tuesday Blitz August 08 Early 2023"]
[White "Girsh, Daniel"]
[Black "Suyarov, Mukhammadzokhid"]
[WhiteFideId "30949190"]
[BlackFideId "14210495"]
[WhiteElo "2552"]
[BlackElo "2714"]
[Result "1/2-1/2"]
[Round "6"]
[TimeControl "180+1"]
[Date "2023.08.08"]
[WhiteClock "0:00:24"]
[BlackClock "0:01:28"]
[Board "73"]

1. d4 {[%clk 0:02:59]}  e6 {[%clk 0:02:55]} 2. c4 {[%clk 0:02:57]}  b6 {[%clk 0:02:55]} 3. Nc3 {[%clk 0:02:55]}  Bb7 {[%clk 0:02:55]} 4. a3 {[%clk 0:02:56]}  f5 {[%clk 0:02:55]} 5. d5 {[%clk 0:02:56]}  Nf6 {[%clk 0:02:56]} 6. dxe6 {[%clk 0:02:49]}  dxe6 {[%clk 0:02:57]} 7. Qxd8+ {[%clk 0:02:49]}  Kxd8 {[%clk 0:02:58]} 8. Nf3 {[%clk 0:02:49]}  Nbd7 {[%clk 0:02:55]} 9. Bf4 {[%clk 0:02:46]}  Bd6 {[%clk 0:02:44]} 10. Bxd6 {[%clk 0:02:39]}  cxd6 {[%clk 0:02:45]} 11. O-O-O {[%clk 0:02:39]}  Ke7 {[%clk 0:02:44]} 12. e3 {[%clk 0:02:33]}  Ne5 {[%clk 0:02:41]} 13. Nxe5 {[%clk 0:02:31]}  dxe5 {[%clk 0:02:42]} 14. Be2 {[%clk 0:02:29]}  g5 {[%clk 0:02:41]} 15. f3 {[%clk 0:02:18]}  h5 {[%clk 0:02:39]} 16. Rd2 {[%clk 0:02:13]}  g4 {[%clk 0:02:35]} 17. Rhd1 {[%clk 0:02:12]}  gxf3 {[%clk 0:02:32]} 18. Bxf3 {[%clk 0:02:06]}  e4 {[%clk 0:02:30]} 19. Be2 {[%clk 0:02:05]}  Rad8 {[%clk 0:02:31]} 20. Nb5 {[%clk 0:01:59]}  Rxd2 {[%clk 0:02:30]} 21. Rxd2 {[%clk 0:01:58]}  a6 {[%clk 0:02:31]} 22. Nd4 {[%clk 0:01:48]}  Rg8 {[%clk 0:02:25]} 23. g3 {[%clk 0:01:47]}  h4 {[%clk 0:02:23]} 24. gxh4 {[%clk 0:01:47]}  Rh8 {[%clk 0:02:23]} 25. h5 {[%clk 0:01:34]}  Nxh5 {[%clk 0:02:22]} 26. c5 {[%clk 0:01:35]}  bxc5 {[%clk 0:02:20]} 27. Nb3 {[%clk 0:01:35]}  Nf6 {[%clk 0:02:18]} 28. Nxc5 {[%clk 0:01:34]}  Bd5 {[%clk 0:02:19]} 29. Nxa6 {[%clk 0:01:31]}  Rxh2 {[%clk 0:02:17]} 30. b4 {[%clk 0:01:24]}  Rxe2 {[%clk 0:02:09]} 31. Rxe2 {[%clk 0:01:19]}  Bc4 {[%clk 0:02:10]} 32. Rb2 {[%clk 0:01:16]}  Bxa6 {[%clk 0:02:09]} 33. b5 {[%clk 0:01:17]}  Bc8 {[%clk 0:02:07]} 34. a4 {[%clk 0:01:07]}  Nd5 {[%clk 0:02:05]} 35. Kd2 {[%clk 0:01:06]}  e5 {[%clk 0:02:04]} 36. a5 {[%clk 0:01:06]}  f4 {[%clk 0:02:04]} 37. b6 {[%clk 0:00:57]}  fxe3+ {[%clk 0:02:04]} 38. Ke1 {[%clk 0:00:54]}  Bb7 {[%clk 0:02:00]} 39. Rb5 {[%clk 0:00:54]}  Kd6 {[%clk 0:01:58]} 40. a6 {[%clk 0:00:41]}  Bxa6 {[%clk 0:01:56]} 41. b7 {[%clk 0:00:41]}  Bxb7 {[%clk 0:01:54]} 42. Rxb7 {[%clk 0:00:41]}  Nf4 {[%clk 0:01:55]} 43. Rb3 {[%clk 0:00:38]}  Ke6 {[%clk 0:01:53]} 44. Kf1 {[%clk 0:00:34]}  e2+ {[%clk 0:01:51]} 45. Ke1 {[%clk 0:00:34]}  Kf5 {[%clk 0:01:51]} 46. Rg3 {[%clk 0:00:32]}  Kf6 {[%clk 0:01:50]} 47. Ra3 {[%clk 0:00:30]}  Ke6 {[%clk 0:01:49]} 48. Ra5 {[%clk 0:00:30]}  Kf5 {[%clk 0:01:49]} 49. Ra3 {[%clk 0:00:30]}  Kg4 {[%clk 0:01:49]} 50. Kf2 {[%clk 0:00:28]}  Kf5 {[%clk 0:01:38]} 51. Rb3 {[%clk 0:00:28]}  Ke6 {[%clk 0:01:35]} 52. Rb6+ {[%clk 0:00:27]}  Kd5 {[%clk 0:01:36]} 53. Rb5+ {[%clk 0:00:28]}  Kc4 {[%clk 0:01:36]} 54. Ra5 {[%clk 0:00:21]}  Kd4 {[%clk 0:01:28]} 55. Ra4+ {[%clk 0:00:20]}  Kd3 {[%clk 0:01:26]} 56. Ra3+ {[%clk 0:00:19]}  Kd2 {[%clk 0:01:22]} 57. Ra2+ {[%clk 0:00:20]}  Kc3 {[%clk 0:01:20]} 58. Ra3+ {[%clk 0:00:19]}  Kb4 {[%clk 0:01:20]} 59. Re3 {[%clk 0:00:19]}  e1=Q+ {[%clk 0:01:20]} 60. Rxe1 {[%clk 0:00:17]}  Nd3+ {[%clk 0:01:20]} 61. Ke3 {[%clk 0:00:18]}  Nxe1 {[%clk 0:01:20]} 62. Kxe4 {[%clk 0:00:18]}  Nf3 {[%clk 0:01:20]} 63. Kxf3 {[%clk 0:00:19]}  Kc5 {[%clk 0:01:21]} 64. Ke4 {[%clk 0:00:19]}  Kd6 {[%clk 0:01:21]} 65. Ke3 {[%clk 0:00:20]}  Kd5 {[%clk 0:01:22]} 66. Kd3 {[%clk 0:00:20]}  e4+ {[%clk 0:01:23]} 67. Ke3 {[%clk 0:00:21]}  Ke5 {[%clk 0:01:24]} 68. Ke2 {[%clk 0:00:22]}  Kd4 {[%clk 0:01:25]} 69. Kd2 {[%clk 0:00:22]}  e3+ {[%clk 0:01:25]} 70. Ke2 {[%clk 0:00:22]}  Ke4 {[%clk 0:01:26]} 71. Ke1 {[%clk 0:00:23]}  Kd3 {[%clk 0:01:26]} 72. Kd1 {[%clk 0:00:23]}  Ke4 {[%clk 0:01:25]} 73. Ke2 {[%clk 0:00:23]}  Kf4 {[%clk 0:01:26]} 74. Ke1 {[%clk 0:00:24]}  Kf3 {[%clk 0:01:26]} 75. Kf1 {[%clk 0:00:24]}  e2+ {[%clk 0:01:27]} 76. Ke1 {[%clk 0:00:24]}  Kg2 {[%clk 0:01:28]} 77. Kxe2 {[%clk 0:00:24]} 1/2-1/2


[Site "https://www.chess.com"]

[Event "Titled Tuesday Blitz August 08 Early 2023"]
[White "Morefield, Jason"]
[Black "Camilla_Lee"]
[WhiteFideId "30920825"]
[WhiteElo "2692"]
[BlackElo "2550"]
[Result "1-0"]
[Round "6"]
[TimeControl "180+1"]
[Date "2023.08.08"]
[WhiteClock "0:00:06"]
[BlackClock "0:00:13"]
[Board "75"]

1. d4 {[%clk 0:03:00]}  Nf6 {[%clk 0:02:58]} 2. c4 {[%clk 0:03:00]}  c6 {[%clk 0:02:56]} 3. Nf3 {[%clk 0:03:00]}  d5 {[%clk 0:02:56]} 4. e3 {[%clk 0:03:00]}  Bg4 {[%clk 0:02:56]} 5. Qb3 {[%clk 0:02:53]}  Qb6 {[%clk 0:02:54]} 6. Ne5 {[%clk 0:02:50]}  Bf5 {[%clk 0:02:54]} 7. c5 {[%clk 0:02:49]}  Qxb3 {[%clk 0:02:40]} 8. axb3 {[%clk 0:02:48]}  Bxb1 {[%clk 0:02:40]} 9. Rxb1 {[%clk 0:02:48]}  Nbd7 {[%clk 0:02:40]} 10. Nf3 {[%clk 0:02:44]}  a6 {[%clk 0:02:38]} 11. Bd2 {[%clk 0:02:40]}  Ne4 {[%clk 0:02:37]} 12. Bd3 {[%clk 0:02:34]}  f5 {[%clk 0:02:36]} 13. Ba5 {[%clk 0:02:25]}  e5 {[%clk 0:02:33]} 14. b4 {[%clk 0:02:24]}  exd4 {[%clk 0:02:28]} 15. Nxd4 {[%clk 0:02:24]}  g6 {[%clk 0:02:28]} 16. f3 {[%clk 0:02:14]}  Nef6 {[%clk 0:02:22]} 17. Kf2 {[%clk 0:02:01]}  Kf7 {[%clk 0:02:22]} 18. h3 {[%clk 0:01:58]}  Ne5 {[%clk 0:02:19]} 19. Be2 {[%clk 0:01:57]}  h5 {[%clk 0:02:14]} 20. Bc7 {[%clk 0:01:51]}  Re8 {[%clk 0:02:08]} 21. Rhe1 {[%clk 0:01:24]}  Bg7 {[%clk 0:02:01]} 22. Nb3 {[%clk 0:01:20]}  Nc4 {[%clk 0:01:37]} 23. Bxc4 {[%clk 0:00:49]}  dxc4 {[%clk 0:01:38]} 24. Na5 {[%clk 0:00:49]}  Nd5 {[%clk 0:01:36]} 25. Nxb7 {[%clk 0:00:27]}  Re7 {[%clk 0:01:26]} 26. Nd6+ {[%clk 0:00:22]}  Ke6 {[%clk 0:01:26]} 27. Ba5 {[%clk 0:00:21]}  c3 {[%clk 0:01:24]} 28. bxc3 {[%clk 0:00:20]}  Bxc3 {[%clk 0:01:20]} 29. Re2 {[%clk 0:00:19]}  Be5 {[%clk 0:01:16]} 30. e4 {[%clk 0:00:09]}  Nc3 {[%clk 0:00:40]} 31. exf5+ {[%clk 0:00:09]}  gxf5 {[%clk 0:00:40]} 32. Rxe5+ {[%clk 0:00:06]}  Kxe5 {[%clk 0:00:40]} 33. Re1+ {[%clk 0:00:06]}  Kf6 {[%clk 0:00:40]} 34. Rxe7 {[%clk 0:00:05]}  Kxe7 {[%clk 0:00:41]} 35. Nxf5+ {[%clk 0:00:05]}  Ke6 {[%clk 0:00:39]} 36. Nd4+ {[%clk 0:00:06]}  Kd5 {[%clk 0:00:40]} 37. Ke3 {[%clk 0:00:05]}  Kc4 {[%clk 0:00:20]} 38. Nxc6 {[%clk 0:00:04]}  Re8+ {[%clk 0:00:20]} 39. Kf4 {[%clk 0:00:04]}  Re2 {[%clk 0:00:20]} 40. g4 {[%clk 0:00:04]}  Nd5+ {[%clk 0:00:20]} 41. Kg5 {[%clk 0:00:03]}  hxg4 {[%clk 0:00:19]} 42. hxg4 {[%clk 0:00:03]}  Rf2 {[%clk 0:00:19]} 43. Ne5+ {[%clk 0:00:03]}  Kd4 {[%clk 0:00:19]} 44. Nc6+ {[%clk 0:00:03]}  Kc4 {[%clk 0:00:18]} 45. Nd8 {[%clk 0:00:02]}  Rxf3 {[%clk 0:00:15]} 46. c6 {[%clk 0:00:03]}  Rf8 {[%clk 0:00:07]} 47. c7 {[%clk 0:00:03]}  Nxc7 {[%clk 0:00:07]} 48. Bxc7 {[%clk 0:00:03]}  Rg8+ {[%clk 0:00:08]} 49. Kf5 {[%clk 0:00:03]}  Kxb4 {[%clk 0:00:09]} 50. Ne6 {[%clk 0:00:03]}  a5 {[%clk 0:00:08]} 51. Bd6+ {[%clk 0:00:03]}  Kb3 {[%clk 0:00:06]} 52. g5 {[%clk 0:00:02]}  a4 {[%clk 0:00:05]} 53. Nd4+ {[%clk 0:00:02]}  Kc4 {[%clk 0:00:04]} 54. Nc2 {[%clk 0:00:03]}  Kb3 {[%clk 0:00:03]} 55. Na3 {[%clk 0:00:03]}  Rxg5+ {[%clk 0:00:02]} 56. Kxg5 {[%clk 0:00:03]}  Kb2 {[%clk 0:00:02]} 57. Kf6 {[%clk 0:00:04]}  Kb3 {[%clk 0:00:03]} 58. Ke5 {[%clk 0:00:05]}  Kc3 {[%clk 0:00:04]} 59. Kd5 {[%clk 0:00:05]}  Kb3 {[%clk 0:00:05]} 60. Kc6 {[%clk 0:00:05]}  Kc3 {[%clk 0:00:06]} 61. Kb5 {[%clk 0:00:06]}  Kb3 {[%clk 0:00:07]} 62. Bb4 {[%clk 0:00:06]}  Kb2 {[%clk 0:00:07]} 63. Kxa4 {[%clk 0:00:06]}  Kc1 {[%clk 0:00:08]} 64. Nb5 {[%clk 0:00:05]}  Kd1 {[%clk 0:00:09]} 65. Nd4 {[%clk 0:00:06]}  Kc1 {[%clk 0:00:08]} 66. Kb5 {[%clk 0:00:06]}  Kb2 {[%clk 0:00:08]} 67. Kc4 {[%clk 0:00:07]}  Kc1 {[%clk 0:00:08]} 68. Kd3 {[%clk 0:00:06]}  Kd1 {[%clk 0:00:09]} 69. Ba5 {[%clk 0:00:04]}  Kc1 {[%clk 0:00:10]} 70. Ke2 {[%clk 0:00:05]}  Kb2 {[%clk 0:00:09]} 71. Bb4 {[%clk 0:00:05]}  Ka2 {[%clk 0:00:09]} 72. Kd2 {[%clk 0:00:05]}  Kb2 {[%clk 0:00:10]} 73. Kd1 {[%clk 0:00:04]}  Ka2 {[%clk 0:00:11]} 74. Kc2 {[%clk 0:00:04]}  Ka1 {[%clk 0:00:11]} 75. Nb3+ {[%clk 0:00:05]}  Ka2 {[%clk 0:00:12]} 76. Nc1+ {[%clk 0:00:05]}  Ka1 {[%clk 0:00:13]} 77. Bc3# {[%clk 0:00:06]} 1-0


[Site "https://www.chess.com"]

[Event "Titled Tuesday Blitz August 08 Early 2023"]
[White "Keleberda, Tymur"]
[Black "KarolKacprzak"]
[WhiteFideId "14174294"]
[WhiteElo "2544"]
[BlackElo "2692"]
[Result "1-0"]
[Round "6"]
[TimeControl "180+1"]
[Date "2023.08.08"]
[WhiteClock "0:01:21"]
[BlackClock "0:00:35"]
[Board "76"]

1. e4 {[%clk 0:03:00]}  c5 {[%clk 0:02:55]} 2. Nf3 {[%clk 0:02:59]}  d6 {[%clk 0:02:55]} 3. c3 {[%clk 0:02:59]}  Nf6 {[%clk 0:02:55]} 4. h3 {[%clk 0:03:00]}  Nc6 {[%clk 0:02:55]} 5. Bd3 {[%clk 0:03:00]}  g6 {[%clk 0:02:54]} 6. Bc2 {[%clk 0:03:01]}  Bg7 {[%clk 0:02:55]} 7. d4 {[%clk 0:03:01]}  O-O {[%clk 0:02:52]} 8. O-O {[%clk 0:03:00]}  cxd4 {[%clk 0:02:48]} 9. cxd4 {[%clk 0:03:01]}  d5 {[%clk 0:02:49]} 10. e5 {[%clk 0:03:02]}  Ne4 {[%clk 0:02:50]} 11. Re1 {[%clk 0:03:02]}  Bf5 {[%clk 0:02:44]} 12. Nbd2 {[%clk 0:03:02]}  Rc8 {[%clk 0:02:30]} 13. Nxe4 {[%clk 0:02:48]}  dxe4 {[%clk 0:02:28]} 14. Bxe4 {[%clk 0:02:48]}  Bxe4 {[%clk 0:02:24]} 15. Rxe4 {[%clk 0:02:48]}  Qd5 {[%clk 0:02:23]} 16. Re1 {[%clk 0:02:43]}  Rfd8 {[%clk 0:02:19]} 17. Be3 {[%clk 0:02:43]}  Nb4 {[%clk 0:02:20]} 18. Re2 {[%clk 0:02:36]}  a5 {[%clk 0:02:02]} 19. a3 {[%clk 0:02:35]}  Nc6 {[%clk 0:02:02]} 20. Rd2 {[%clk 0:02:28]}  b5 {[%clk 0:02:02]} 21. Rc1 {[%clk 0:02:27]}  Qd7 {[%clk 0:01:54]} 22. Rc5 {[%clk 0:02:20]}  b4 {[%clk 0:01:46]} 23. Qb3 {[%clk 0:02:04]}  Bf8 {[%clk 0:01:32]} 24. d5 {[%clk 0:01:55]}  Nb8 {[%clk 0:01:33]} 25. Rxa5 {[%clk 0:01:51]}  bxa3 {[%clk 0:01:27]} 26. bxa3 {[%clk 0:01:52]}  Rc1+ {[%clk 0:01:22]} 27. Kh2 {[%clk 0:01:52]}  Bg7 {[%clk 0:01:19]} 28. Ra7 {[%clk 0:01:50]}  Rc7 {[%clk 0:01:17]} 29. Rxc7 {[%clk 0:01:45]}  Qxc7 {[%clk 0:01:18]} 30. d6 {[%clk 0:01:45]}  exd6 {[%clk 0:01:11]} 31. exd6 {[%clk 0:01:40]}  Qd7 {[%clk 0:01:07]} 32. Bf4 {[%clk 0:01:29]}  Nc6 {[%clk 0:01:06]} 33. a4 {[%clk 0:01:27]}  Rb8 {[%clk 0:01:00]} 34. Qd5 {[%clk 0:01:26]}  Ra8 {[%clk 0:00:55]} 35. Rc2 {[%clk 0:01:21]}  Ra6 {[%clk 0:00:35]} 36. Qb5 {[%clk 0:01:21]} 1-0


[Site "https://www.chess.com"]

[Event "Titled Tuesday Blitz August 08 Early 2023"]
[White "Janaszak, Dawid"]
[Black "Korchmar, Vasiliy"]
[WhiteFideId "1119206"]
[BlackFideId "24131750"]
[WhiteElo "2542"]
[BlackElo "2692"]
[Result "0-1"]
[Round "6"]
[TimeControl "180+1"]
[Date "2023.08.08"]
[WhiteClock "0:00:00"]
[BlackClock "0:01:30"]
[Board "77"]

1. d4 {[%clk 0:03:00]}  d5 {[%clk 0:02:58]} 2. Nf3 {[%clk 0:02:56]}  Nf6 {[%clk 0:02:58]} 3. c4 {[%clk 0:02:54]}  c6 {[%clk 0:02:58]} 4. Nbd2 {[%clk 0:02:52]}  Bg4 {[%clk 0:02:57]} 5. Qb3 {[%clk 0:02:51]}  Qb6 {[%clk 0:02:57]} 6. c5 {[%clk 0:02:51]}  Qc7 {[%clk 0:02:56]} 7. Ne5 {[%clk 0:02:49]}  Bf5 {[%clk 0:02:57]} 8. Qf3 {[%clk 0:02:40]}  e6 {[%clk 0:02:56]} 9. g4 {[%clk 0:02:38]}  Bg6 {[%clk 0:02:40]} 10. g5 {[%clk 0:02:32]}  Be4 {[%clk 0:02:24]} 11. Nxe4 {[%clk 0:02:30]}  Nxe4 {[%clk 0:02:25]} 12. a3 {[%clk 0:02:09]}  Bxc5 {[%clk 0:02:22]} 13. e3 {[%clk 0:01:38]}  Bd6 {[%clk 0:02:17]} 14. Nd3 {[%clk 0:01:35]}  Nd7 {[%clk 0:02:14]} 15. h4 {[%clk 0:01:33]}  e5 {[%clk 0:02:13]} 16. Bh3 {[%clk 0:01:31]}  exd4 {[%clk 0:02:03]} 17. exd4 {[%clk 0:01:31]}  O-O {[%clk 0:02:04]} 18. Be3 {[%clk 0:01:27]}  c5 {[%clk 0:02:04]} 19. dxc5 {[%clk 0:01:18]}  Ndxc5 {[%clk 0:02:02]} 20. Nxc5 {[%clk 0:01:15]}  Bxc5 {[%clk 0:02:03]} 21. Rc1 {[%clk 0:01:09]}  Qb6 {[%clk 0:02:02]} 22. Bxc5 {[%clk 0:01:06]}  Nxc5 {[%clk 0:02:03]} 23. O-O {[%clk 0:01:00]}  Ne4 {[%clk 0:02:03]} 24. Rfd1 {[%clk 0:00:52]}  Rad8 {[%clk 0:02:03]} 25. b4 {[%clk 0:00:50]}  a5 {[%clk 0:02:02]} 26. bxa5 {[%clk 0:00:45]}  Qxa5 {[%clk 0:02:03]} 27. Bf5 {[%clk 0:00:37]}  Rfe8 {[%clk 0:01:58]} 28. Kg2 {[%clk 0:00:32]}  g6 {[%clk 0:01:57]} 29. Bg4 {[%clk 0:00:21]}  Nd2 {[%clk 0:01:56]} 30. Qf6 {[%clk 0:00:17]}  Qa4 {[%clk 0:01:47]} 31. Kh3 {[%clk 0:00:08]}  Qxa3+ {[%clk 0:01:40]} 32. f3 {[%clk 0:00:07]}  Ne4 {[%clk 0:01:38]} 33. Qf4 {[%clk 0:00:04]}  Nf2+ {[%clk 0:01:38]} 34. Kg2 {[%clk 0:00:05]}  Nxd1 {[%clk 0:01:38]} 35. Rc7 {[%clk 0:00:04]}  Re7 {[%clk 0:01:36]} 36. Qf6 {[%clk 0:00:03]}  Rde8 {[%clk 0:01:32]} 37. Rc1 {[%clk 0:00:00]}  Qxc1 {[%clk 0:01:30]} 0-1


[Site "https://www.chess.com"]

[Event "Titled Tuesday Blitz August 08 Early 2023"]
[White "Godzwon, Iwo"]
[Black "Ismagilov, Damir"]
[WhiteFideId "21802483"]
[BlackFideId "34199982"]
[WhiteElo "2681"]
[BlackElo "2540"]
[Result "0-1"]
[Round "6"]
[TimeControl "180+1"]
[Date "2023.08.08"]
[WhiteClock "0:00:28"]
[BlackClock "0:00:13"]
[Board "79"]

1. e4 {[%clk 0:03:00]}  c5 {[%clk 0:03:00]} 2. Nf3 {[%clk 0:03:00]}  d6 {[%clk 0:03:00]} 3. d4 {[%clk 0:03:00]}  cxd4 {[%clk 0:03:01]} 4. Nxd4 {[%clk 0:03:00]}  Nf6 {[%clk 0:03:02]} 5. Nc3 {[%clk 0:03:00]}  a6 {[%clk 0:03:02]} 6. Bg5 {[%clk 0:02:54]}  Nbd7 {[%clk 0:03:02]} 7. Bc4 {[%clk 0:02:54]}  Qb6 {[%clk 0:03:02]} 8. Nb3 {[%clk 0:02:49]}  e6 {[%clk 0:02:58]} 9. Qe2 {[%clk 0:02:49]}  Ne5 {[%clk 0:02:38]} 10. f3 {[%clk 0:02:25]}  Qc7 {[%clk 0:02:36]} 11. Bd3 {[%clk 0:02:25]}  Be7 {[%clk 0:02:22]} 12. O-O-O {[%clk 0:02:23]}  b5 {[%clk 0:02:20]} 13. a3 {[%clk 0:02:15]}  Bb7 {[%clk 0:02:18]} 14. Kb1 {[%clk 0:02:15]}  h6 {[%clk 0:02:16]} 15. Be3 {[%clk 0:02:12]}  O-O {[%clk 0:02:14]} 16. g4 {[%clk 0:02:07]}  Nxd3 {[%clk 0:01:55]} 17. cxd3 {[%clk 0:02:02]}  Nd7 {[%clk 0:01:52]} 18. h4 {[%clk 0:02:01]}  Rab8 {[%clk 0:01:15]} 19. f4 {[%clk 0:01:39]}  Ba8 {[%clk 0:01:13]} 20. g5 {[%clk 0:01:33]}  b4 {[%clk 0:01:09]} 21. axb4 {[%clk 0:01:32]}  Rxb4 {[%clk 0:01:09]} 22. gxh6 {[%clk 0:01:10]}  Rxb3 {[%clk 0:01:05]} 23. hxg7 {[%clk 0:01:10]}  Rfb8 {[%clk 0:00:59]} 24. Na4 {[%clk 0:01:02]}  Bf6 {[%clk 0:00:44]} 25. Bc1 {[%clk 0:01:02]}  Nc5 {[%clk 0:00:28]} 26. Qh5 {[%clk 0:00:43]}  Bxg7 {[%clk 0:00:22]} 27. Rdg1 {[%clk 0:00:38]}  f5 {[%clk 0:00:16]} 28. Nxc5 {[%clk 0:00:34]}  Rxb2+ {[%clk 0:00:12]} 29. Bxb2 {[%clk 0:00:32]}  Rxb2+ {[%clk 0:00:13]} 30. Kc1 {[%clk 0:00:30]}  Qxc5+ {[%clk 0:00:13]} 31. Kd1 {[%clk 0:00:31]}  Qc2+ {[%clk 0:00:13]} 32. Ke1 {[%clk 0:00:28]}  Rb1+ {[%clk 0:00:13]} 0-1


[Site "https://www.chess.com"]

[Event "Titled Tuesday Blitz August 08 Early 2023"]
[White "Kanyamarala, Tarun"]
[Black "Fus, Jakub"]
[WhiteFideId "45004714"]
[BlackFideId "1193023"]
[WhiteElo "2531"]
[BlackElo "2667"]
[Result "0-1"]
[Round "6"]
[TimeControl "180+1"]
[Date "2023.08.08"]
[WhiteClock "0:00:56"]
[BlackClock "0:01:27"]
[Board "83"]

1. d4 {[%clk 0:03:00]}  e6 {[%clk 0:03:00]} 2. c4 {[%clk 0:02:58]}  Nf6 {[%clk 0:03:00]} 3. g3 {[%clk 0:02:56]}  Bb4+ {[%clk 0:02:58]} 4. Bd2 {[%clk 0:02:54]}  a5 {[%clk 0:02:54]} 5. Bg2 {[%clk 0:02:53]}  O-O {[%clk 0:02:54]} 6. Nf3 {[%clk 0:02:52]}  b6 {[%clk 0:02:54]} 7. O-O {[%clk 0:02:52]}  Bb7 {[%clk 0:02:54]} 8. Nc3 {[%clk 0:02:52]}  d6 {[%clk 0:02:53]} 9. Rc1 {[%clk 0:02:44]}  Nbd7 {[%clk 0:02:53]} 10. Nb5 {[%clk 0:02:42]}  Bxd2 {[%clk 0:02:52]} 11. Nxd2 {[%clk 0:02:42]}  Bxg2 {[%clk 0:02:51]} 12. Kxg2 {[%clk 0:02:43]}  e5 {[%clk 0:02:50]} 13. e3 {[%clk 0:02:38]}  Re8 {[%clk 0:02:45]} 14. Re1 {[%clk 0:02:36]}  Qc8 {[%clk 0:02:44]} 15. Qf3 {[%clk 0:02:35]}  e4 {[%clk 0:02:42]} 16. Qe2 {[%clk 0:02:30]}  Qb7 {[%clk 0:02:41]} 17. Rf1 {[%clk 0:02:16]}  Nf8 {[%clk 0:02:37]} 18. f3 {[%clk 0:02:13]}  exf3+ {[%clk 0:02:36]} 19. Qxf3 {[%clk 0:02:13]}  Qxf3+ {[%clk 0:02:25]} 20. Kxf3 {[%clk 0:02:12]}  Rac8 {[%clk 0:02:26]} 21. c5 {[%clk 0:02:05]}  dxc5 {[%clk 0:02:18]} 22. dxc5 {[%clk 0:02:05]}  Ne6 {[%clk 0:02:18]} 23. cxb6 {[%clk 0:02:05]}  cxb6 {[%clk 0:02:19]} 24. Nc4 {[%clk 0:02:04]}  Ng5+ {[%clk 0:02:14]} 25. Kg2 {[%clk 0:02:02]}  Rcd8 {[%clk 0:01:50]} 26. Rfd1 {[%clk 0:01:56]}  h5 {[%clk 0:01:45]} 27. Nbd6 {[%clk 0:01:40]}  Re6 {[%clk 0:01:41]} 28. Nf5 {[%clk 0:01:33]}  Rxd1 {[%clk 0:01:35]} 29. Rxd1 {[%clk 0:01:34]}  g6 {[%clk 0:01:33]} 30. Rd8+ {[%clk 0:01:26]}  Kh7 {[%clk 0:01:33]} 31. Nd4 {[%clk 0:01:24]}  Re4 {[%clk 0:01:29]} 32. h4 {[%clk 0:01:16]}  Ne6 {[%clk 0:01:28]} 33. Nxb6 {[%clk 0:00:56]}  Nxd8 {[%clk 0:01:27]} 0-1


[Site "https://www.chess.com"]

[Event "Titled Tuesday Blitz August 08 Early 2023"]
[White "Perrine, Dalton"]
[Black "Hua, Lefong"]
[WhiteFideId "2048434"]
[BlackFideId "2602253"]
[WhiteElo "2524"]
[BlackElo "2664"]
[Result "1-0"]
[Round "6"]
[TimeControl "180+1"]
[Date "2023.08.08"]
[WhiteClock "0:00:02"]
[BlackClock "0:00:05"]
[Board "84"]

1. Nf3 {[%clk 0:03:00]}  Nf6 {[%clk 0:02:59]} 2. g3 {[%clk 0:03:00]}  g6 {[%clk 0:03:00]} 3. b3 {[%clk 0:03:01]}  Bg7 {[%clk 0:03:00]} 4. Bb2 {[%clk 0:03:01]}  O-O {[%clk 0:03:01]} 5. Bg2 {[%clk 0:03:02]}  c5 {[%clk 0:03:01]} 6. c4 {[%clk 0:03:02]}  Nc6 {[%clk 0:03:02]} 7. O-O {[%clk 0:03:02]}  d6 {[%clk 0:03:03]} 8. d4 {[%clk 0:03:02]}  Ne4 {[%clk 0:03:03]} 9. e3 {[%clk 0:02:59]}  Bg4 {[%clk 0:02:19]} 10. Qc1 {[%clk 0:02:58]}  cxd4 {[%clk 0:02:09]} 11. Nxd4 {[%clk 0:02:53]}  Nxd4 {[%clk 0:02:06]} 12. exd4 {[%clk 0:02:54]}  Nf6 {[%clk 0:01:58]} 13. Bxb7 {[%clk 0:02:51]}  Rb8 {[%clk 0:01:59]} 14. Bg2 {[%clk 0:02:50]}  d5 {[%clk 0:01:54]} 15. c5 {[%clk 0:02:40]}  Qc8 {[%clk 0:01:37]} 16. Re1 {[%clk 0:02:37]}  Re8 {[%clk 0:01:33]} 17. Nc3 {[%clk 0:02:22]}  Be6 {[%clk 0:01:26]} 18. Qd2 {[%clk 0:01:52]}  h5 {[%clk 0:01:24]} 19. Ne2 {[%clk 0:01:18]}  Ne4 {[%clk 0:01:15]} 20. Qa5 {[%clk 0:01:18]}  Bh3 {[%clk 0:01:11]} 21. Nf4 {[%clk 0:00:56]}  Bxg2 {[%clk 0:01:08]} 22. Kxg2 {[%clk 0:00:57]}  Qf5 {[%clk 0:01:03]} 23. f3 {[%clk 0:00:51]}  Nf6 {[%clk 0:00:48]} 24. Re5 {[%clk 0:00:41]}  Qc2+ {[%clk 0:00:45]} 25. Re2 {[%clk 0:00:41]}  Qf5 {[%clk 0:00:45]} 26. Rae1 {[%clk 0:00:37]}  h4 {[%clk 0:00:41]} 27. Re5 {[%clk 0:00:34]}  Qc2+ {[%clk 0:00:41]} 28. R1e2 {[%clk 0:00:33]}  Qb1 {[%clk 0:00:39]} 29. c6 {[%clk 0:00:16]}  Rbc8 {[%clk 0:00:34]} 30. c7 {[%clk 0:00:14]}  hxg3 {[%clk 0:00:33]} 31. hxg3 {[%clk 0:00:14]}  Nh5 {[%clk 0:00:31]} 32. Rxh5 {[%clk 0:00:12]}  gxh5 {[%clk 0:00:29]} 33. Nxd5 {[%clk 0:00:12]}  Qd3 {[%clk 0:00:21]} 34. Nf4 {[%clk 0:00:04]}  Qd1 {[%clk 0:00:17]} 35. d5 {[%clk 0:00:02]}  f6 {[%clk 0:00:12]} 36. d6 {[%clk 0:00:02]}  exd6 {[%clk 0:00:10]} 37. Rxe8+ {[%clk 0:00:01]}  Rxe8 {[%clk 0:00:11]} 38. Qd5+ {[%clk 0:00:02]}  Kf8 {[%clk 0:00:05]} 39. Qxd1 {[%clk 0:00:02]} 1-0


[Site "https://www.chess.com"]

[Event "Titled Tuesday Blitz August 08 Early 2023"]
[White "Piesik, Piotr"]
[Black "Eynullayev, Atilla"]
[WhiteFideId "1136194"]
[BlackFideId "13413570"]
[WhiteElo "2655"]
[BlackElo "2523"]
[Result "0-1"]
[Round "6"]
[TimeControl "180+1"]
[Date "2023.08.08"]
[WhiteClock "0:00:03"]
[BlackClock "0:00:09"]
[Board "88"]

1. Nf3 {[%clk 0:02:55]}  Nf6 {[%clk 0:03:00]} 2. g3 {[%clk 0:02:56]}  d5 {[%clk 0:03:00]} 3. Bg2 {[%clk 0:02:56]}  c5 {[%clk 0:03:00]} 4. O-O {[%clk 0:02:57]}  e6 {[%clk 0:03:00]} 5. d3 {[%clk 0:02:57]}  Nc6 {[%clk 0:03:00]} 6. Nbd2 {[%clk 0:02:58]}  g6 {[%clk 0:03:01]} 7. e4 {[%clk 0:02:58]}  Bg7 {[%clk 0:03:01]} 8. c3 {[%clk 0:02:56]}  O-O {[%clk 0:03:01]} 9. Qe2 {[%clk 0:02:56]}  b5 {[%clk 0:02:52]} 10. Re1 {[%clk 0:02:55]}  a5 {[%clk 0:02:51]} 11. Nf1 {[%clk 0:02:54]}  b4 {[%clk 0:02:50]} 12. e5 {[%clk 0:02:54]}  Nd7 {[%clk 0:02:49]} 13. Bg5 {[%clk 0:02:54]}  Qc7 {[%clk 0:02:44]} 14. c4 {[%clk 0:02:50]}  Ndxe5 {[%clk 0:01:53]} 15. Nxe5 {[%clk 0:02:40]}  Qxe5 {[%clk 0:01:51]} 16. cxd5 {[%clk 0:02:39]}  Qxg5 {[%clk 0:01:44]} 17. dxc6 {[%clk 0:02:38]}  Ba6 {[%clk 0:01:45]} 18. Ne3 {[%clk 0:02:14]}  Qe5 {[%clk 0:01:01]} 19. Nc4 {[%clk 0:02:02]}  Qd4 {[%clk 0:01:01]} 20. Rad1 {[%clk 0:01:55]}  Bb5 {[%clk 0:01:00]} 21. Qc2 {[%clk 0:01:04]}  Ra6 {[%clk 0:00:43]} 22. c7 {[%clk 0:00:59]}  Ra7 {[%clk 0:00:41]} 23. a4 {[%clk 0:00:38]}  Bd7 {[%clk 0:00:31]} 24. Re4 {[%clk 0:00:33]}  Qf6 {[%clk 0:00:31]} 25. Ne5 {[%clk 0:00:21]}  Rxc7 {[%clk 0:00:26]} 26. Nxd7 {[%clk 0:00:21]}  Rxd7 {[%clk 0:00:26]} 27. Qxc5 {[%clk 0:00:22]}  Qxb2 {[%clk 0:00:26]} 28. Qxa5 {[%clk 0:00:22]}  b3 {[%clk 0:00:25]} 29. Qb5 {[%clk 0:00:19]}  Qc2 {[%clk 0:00:20]} 30. Bf3 {[%clk 0:00:15]}  Rfd8 {[%clk 0:00:18]} 31. Rb4 {[%clk 0:00:12]}  Rxd3 {[%clk 0:00:17]} 32. Rxd3 {[%clk 0:00:12]}  Rxd3 {[%clk 0:00:16]} 33. Qe8+ {[%clk 0:00:08]}  Bf8 {[%clk 0:00:16]} 34. Rb8 {[%clk 0:00:07]}  Qc5 {[%clk 0:00:14]} 35. Rb7 {[%clk 0:00:03]}  Rxf3 {[%clk 0:00:09]} 0-1


[Site "https://www.chess.com"]